bitfinex/quotes_ETHUSD_20240910
["timestamp","ask_amount","ask_price","bid_price","bid_amount"]
[1725948099069,0.89114572,2350.8,2350.5,2.4532]
[1725948100611,0.89114572,2350.7,2350.5,2.4532]
[1725948102985,0.89114572,2350.8,2350.5,2.4532]
[1725948103180,0.89114572,2350.7,2350.5,2.4532]
[1725948111125,0.89114572,2350.6,2350.5,2.4532]
[1725948112621,0.89114572,2350.7,2350.5,2.4532]
[1725948113414,0.89114572,2350.6,2350.5,2.4532]
[1725948113729,0.89114572,2350.7,2350.5,2.4532]
[1725948113882,0.89114572,2350.8,2350.5,3.95642637]
[1725948114811,0.89114572,2350.7,2350.5,3.95642637]
[1725948115000,0.89114572,2350.8,2350.5,4.35206901]
[1725948115190,0.89114572,2350.7,2350.5,4.35206901]
[1725948121953,0.89114572,2350.8,2350.6,2.3898]
[1725948122262,0.89114572,2350.8,2350.7,1.50322637]
[1725948122555,0.89114572,2350.9,2350.7,4.37029327]
[1725948122763,0.89114572,2351.0,2350.9,2.4382]
[1725948122915,1.33771031,2351.0,2350.9,2.4382]
[1725948123114,0.89152233,2351.0,2350.9,2.93022933]
[1725948123419,1.33771031,2351.0,2350.9,2.93022933]
[1725948123861,1.78361375,2351.1,2350.9,2.93022933]
[1725948123862,1.33771031,2351.1,2350.9,2.93022933]
[1725948124062,1.33771031,2351.0,2350.9,2.93022933]
[1725948125165,0.89173255,2351.0,2350.9,2.93022933]
[1725948125922,0.89173255,2351.0,2350.9,4.4334557]
[1725948126123,0.89173255,2351.1,2350.9,4.9834557]
[1725948126345,0.89173255,2351.0,2350.9,4.9834557]
[1725948126866,0.89173255,2351.1,2350.9,4.9834557]
[1725948130440,0.89173255,2351.1,2351.0,0.49834557]
[1725948131265,0.89173255,2351.1,2351.0,3.29984557]
[1725948131465,0.89173255,2351.3,2351.1,2.2515]
[1725948131624,0.89173255,2351.4,2351.2,0.55]
[1725948131827,0.89173255,2351.4,2351.3,4.26855456]
[1725948132178,0.89173255,2351.4,2351.3,4.81855456]
[1725948132369,0.89173255,2351.5,2351.3,4.81855456]
[1725948133969,0.89173255,2351.4,2351.3,4.81855456]
[1725948134181,0.89173255,2351.4,2351.3,4.30472637]
[1725948136159,0.89173255,2351.5,2351.3,4.30472637]
[1725948139072,0.89173255,2351.6,2351.3,4.30472637]
[1725948139493,0.89173255,2351.5,2351.3,4.30472637]
[1725948139695,0.89173255,2351.6,2351.3,4.30472637]
[1725948140198,0.89173255,2351.6,2351.1,2.08505551]
[1725948140199,0.89173255,2351.5,2351.1,1.50322637]
[1725948140406,0.89173255,2351.4,2351.1,3.0]
[1725948140897,0.89173255,2351.4,2351.0,5.3237]
[1725948141101,0.89173255,2351.3,2351.1,0.55]
[1725948141397,1.33771031,2351.5,2351.1,3.55]
[1725948141398,0.89173255,2351.4,2351.1,3.55]
[1725948142344,0.89173255,2351.5,2351.1,3.55]
[1725948143606,0.89173255,2351.4,2351.1,3.55]
[1725948144306,0.89173255,2351.4,2351.1,0.55]
[1725948147905,0.89173255,2351.4,2350.9,1.50322637]
[1725948147906,0.89173255,2351.3,2350.9,1.50322637]
[1725948148272,0.89173255,2351.4,2350.9,1.50322637]
[1725948148509,0.89173255,2351.3,2350.9,1.50322637]
[1725948150293,3.19903255,2351.3,2350.8,5.3669]
[1725948150510,3.19903255,2351.3,2350.8,3.0]
[1725948150511,0.89173255,2351.1,2350.8,3.0]
[1725948150712,0.89173255,2351.1,2350.6,2.408]
[1725948150713,0.89173255,2351.1,2350.6,6.99630194]
[1725948150910,0.89173255,2351.1,2350.7,0.55]
[1725948151094,3.53794427,2351.0,2350.4,2.3724]
[1725948151420,0.89173255,2350.9,2350.5,1.50322637]
[1725948152089,0.89173255,2350.9,2350.5,3.25622855]
[1725948153370,0.89173255,2350.8,2350.5,3.25622855]
[1725948153569,0.89173255,2350.8,2350.5,4.55509141]
[1725948153919,0.89173255,2350.8,2350.5,3.25622855]
[1725948154712,0.89173255,2350.8,2350.4,2.3724]
[1725948156871,0.89173255,2350.8,2350.2,4.3886]
[1725948157176,0.89173255,2350.8,2350.3,3.55]
[1725948157177,0.89173255,2350.7,2350.3,3.55]
[1725948157511,0.89173255,2350.7,2350.3,3.80622855]
[1725948157822,0.89173255,2350.8,2350.4,2.3297]
[1725948160640,0.89173255,2350.7,2350.3,3.80622855]
[1725948161020,3.17373255,2350.7,2350.3,0.55]
[1725948161352,3.17373255,2350.7,2350.3,3.55]
[1725948161754,0.89173255,2350.7,2350.3,7.94295003]
[1725948168647,0.89173255,2350.8,2350.3,7.94295003]
[1725948169326,0.89173255,2350.7,2350.3,7.94295003]
[1725948172150,0.89173255,2350.7,2350.4,1.50314958]
[1725948173058,1.33771031,2350.8,2350.4,1.50314958]
[1725948173059,0.89173255,2350.8,2350.4,1.50314958]
[1725948173266,0.89173255,2350.8,2350.4,2.56972669]
[1725948174758,0.89173255,2350.7,2350.4,2.56972669]
[1725948174949,0.89173255,2350.8,2350.4,2.56972669]
[1725948175166,0.89173255,2350.9,2350.6,1.50314958]
[1725948175329,0.89173255,2350.8,2350.5,2.3765]
[1725948175534,0.89173255,2350.7,2350.4,0.432845]
[1725948175739,0.89173255,2350.7,2350.3,3.55]
[1725948175974,0.89173255,2350.7,2350.4,0.95100496]
[1725948176143,0.89173255,2350.7,2350.3,3.55]
[1725948176649,0.89173255,2350.7,2350.2,4.4569]
[1725948178440,0.89173255,2350.7,2350.2,2.4569]
[1725948178634,0.89173255,2350.7,2350.2,5.4569]
[1725948180945,3.15143255,2350.6,2350.1,1.50314958]
[1725948181139,0.89173255,2350.5,2350.1,1.50314958]
[1725948181338,0.89173255,2350.5,2350.1,2.28476036]
[1725948181975,3.15143255,2350.6,2350.1,2.28476036]
[1725948182849,1.89384172,2350.5,2350.1,2.28476036]
[1725948183034,0.89173255,2350.5,2350.1,2.28476036]
[1725948184412,1.89410118,2350.4,2350.1,2.28476036]
[1725948184583,0.89173255,2350.4,2350.1,2.28476036]
[1725948184884,0.89173255,2350.5,2350.3,1.50314958]
[1725948185172,0.89173255,2350.5,2350.1,4.54026036]
[1725948185652,1.8942452,2350.4,2350.1,4.54026036]
[1725948185848,0.89173255,2350.4,2350.1,4.54026036]
[1725948188388,1.89464344,2350.3,2350.1,4.54026036]
[1725948188571,0.89173255,2350.4,2350.1,4.54026036]
[1725948188887,1.89463738,2350.4,2350.1,4.54026036]
[1725948189799,0.89173255,2350.3,2350.1,4.54026036]
[1725948190151,0.89173255,2350.4,2350.1,4.54026036]
[1725948190352,0.89173255,2350.3,2350.1,4.54026036]
[1725948190586,1.89863019,2350.3,2350.1,4.54026036]
[1725948191923,1.89863019,2350.3,2350.1,2.28476036]
[1725948192452,0.89173255,2350.3,2350.1,2.28476036]
[1725948192695,1.89915723,2350.3,2350.1,2.28476036]
[1725948192862,1.89915723,2350.3,2350.1,1.50314958]
[1725948193277,0.89173255,2350.3,2350.1,1.50314958]
[1725948193655,1.89942247,2350.2,2350.1,1.50314958]
[1725948193864,0.89173255,2350.3,2350.1,2.05314958]
[1725948194071,0.89173255,2350.3,2350.1,3.00191454]
[1725948194292,1.89972039,2350.2,2350.1,3.00191454]
[1725948194797,0.89173255,2350.3,2350.1,3.00191454]
[1725948195157,1.89971492,2350.2,2350.1,3.00191454]
[1725948195874,2.34569268,2350.2,2350.1,3.00191454]
[1725948196076,2.34569268,2350.2,2350.1,2.05314958]
[1725948197425,2.35276018,2350.2,2350.1,2.05314958]
[1725948200720,2.35276018,2350.2,2350.0,3.0]
[1725948200949,1.90837066,2350.1,2350.0,3.0]
[1725948201124,1.90837066,2350.1,2350.0,3.55]
[1725948201750,1.90837066,2350.1,2349.7,2.3476]
[1725948202064,0.89332079,2350.1,2349.8,2.05314958]
[1725948202255,0.89332079,2350.1,2349.8,5.05314958]
[1725948203057,1.9083967,2350.0,2349.8,5.05314958]
[1725948204155,0.89332079,2350.0,2349.8,5.05314958]
[1725948204329,0.89332079,2350.0,2349.8,8.97312454]
[1725948207451,0.89332079,2350.0,2349.8,5.05314958]
[1725948207758,0.89332079,2350.0,2349.8,5.13825459]
[1725948209356,0.89332079,2350.1,2349.8,5.13825459]
[1725948209517,0.89332079,2350.1,2350.0,1.50314958]
[1725948209724,1.92569189,2350.1,2350.0,1.50314958]
[1725948213620,1.92571309,2350.1,2350.0,1.50314958]
[1725948217104,4.19252912,2350.1,2349.8,0.55]
[1725948217268,0.89338449,2349.9,2349.8,0.55]
[1725948217469,1.9257926,2349.9,2349.8,1.19007496]
[1725948217689,0.8934003,2350.0,2349.8,1.19007496]
[1725948217891,0.8934003,2350.0,2349.9,1.50314958]
[1725948218095,1.92453889,2350.0,2349.9,1.50314958]
[1725948218688,1.03113753,2350.0,2349.9,1.50314958]
[1725948218893,1.92451956,2350.0,2349.9,1.50314958]
[1725948220401,1.03113753,2350.0,2349.9,1.50314958]
[1725948220896,1.92458668,2350.0,2349.9,1.50314958]
[1725948221323,2.37121427,2350.0,2349.9,1.50314958]
[1725948222488,1.03113753,2350.0,2349.9,1.50314958]
[1725948222930,2.37121427,2350.0,2349.9,1.50314958]
[1725948223526,1.03113753,2350.0,2349.9,1.50314958]
[1725948223734,1.03142299,2350.0,2349.9,1.50314958]
[1725948224084,2.37149973,2350.0,2349.9,1.50314958]
[1725948228889,2.37296863,2350.0,2349.9,1.50314958]
[1725948233711,2.37309547,2350.0,2349.9,1.50314958]
[1725948235797,2.37309547,2350.0,2349.9,1.93646428]
[1725948236006,2.37309547,2350.0,2349.9,1.50314958]
[1725948236235,2.37309547,2350.0,2349.9,1.93646141]
[1725948240538,2.37309547,2350.0,2349.9,2.51626115]
[1725948240849,2.37309547,2350.0,2349.9,5.32786115]
[1725948241057,1.92707988,2350.0,2349.9,4.89454932]
[1725948241215,1.03301873,2350.0,2349.9,5.32774311]
[1725948241616,2.37309547,2350.0,2349.9,5.32774311]
[1725948242321,2.3822676,2350.0,2349.9,5.32774311]
[1725948242950,1.04219086,2350.0,2349.9,5.32774311]
[1725948243316,1.78361375,2350.2,2349.9,9.76202675]
[1725948243317,0.8941243,2350.2,2349.9,9.76202675]
[1725948243511,0.8941243,2350.3,2350.2,4.3397]
[1725948243711,1.93600808,2350.3,2350.2,6.23801115]
[1725948243956,0.8941243,2350.4,2350.2,9.23801115]
[1725948244161,1.34007674,2350.5,2350.3,5.48634337]
[1725948244319,1.34007674,2350.5,2350.4,1.86230986]
[1725948244522,2.37710689,2350.5,2350.4,2.41230986]
[1725948245949,1.93040804,2350.5,2350.4,2.41230986]
[1725948246372,1.93012744,2350.5,2350.4,2.41230986]
[1725948246956,1.92336628,2350.5,2350.4,2.41230986]
[1725948249569,1.92336628,2350.5,2350.4,1.97911607]
[1725948249755,1.92336628,2350.5,2350.4,2.41221771]
[1725948250417,1.92336628,2350.5,2350.4,1.97911607]
[1725948251817,4.75138904,2350.5,2350.4,0.55]
[1725948252420,4.75138904,2350.5,2350.0,3.05436596]
[1725948252620,1.92592925,2350.4,2350.1,3.55]
[1725948252820,0.89251695,2350.4,2350.1,3.55]
[1725948253818,1.92599903,2350.3,2349.9,22.30979974]
[1725948254030,1.92602276,2350.2,2349.9,23.81294932]
[1725948254253,0.89251695,2350.2,2349.9,23.81294932]
[1725948254464,1.92605383,2350.2,2349.9,23.81294932]
[1725948254665,0.89251695,2350.2,2349.9,23.81294932]
[1725948254958,0.89251695,2350.2,2350.0,2.61249493]
[1725948255201,0.89251695,2350.2,2349.9,4.08294932]
[1725948255461,1.92566304,2350.1,2350.0,3.55]
[1725948256771,1.92567639,2350.1,2350.0,3.55]
[1725948257857,1.92567639,2350.1,2349.7,0.56050294]
[1725948258089,1.92567639,2350.1,2349.7,3.56050294]
[1725948258090,1.92575016,2350.0,2349.7,3.56050294]
[1725948258242,0.89251695,2350.0,2349.8,2.90821883]
[1725948258448,0.89251695,2350.0,2349.9,3.0]
[1725948258758,1.92575018,2350.0,2349.9,3.0]
[1725948259391,1.92575018,2350.0,2349.8,2.05314958]
[1725948259601,1.92575018,2350.0,2349.8,5.05314958]
[1725948260390,0.89251695,2350.0,2349.8,5.05314958]
[1725948260891,0.89251695,2350.1,2349.8,5.05314958]
[1725948261119,1.92567589,2350.0,2349.8,5.05314958]
[1725948261418,0.89251695,2350.0,2349.8,5.05314958]
[1725948261540,1.92567045,2350.0,2349.8,2.05314958]
[1725948263060,0.89251695,2350.0,2349.8,2.05314958]
[1725948263286,0.89251695,2350.0,2349.8,3.05300414]
[1725948263451,1.92564336,2350.0,2349.8,3.05300414]
[1725948265183,0.89251695,2350.0,2349.8,3.05300414]
[1725948265486,1.92565415,2350.0,2349.8,3.05300414]
[1725948265653,0.89251695,2350.0,2349.8,3.05300414]
[1725948266044,1.92565378,2350.0,2349.8,3.05300414]
[1725948266262,0.89251695,2350.0,2349.8,3.05300414]
[1725948266471,0.89251695,2350.1,2349.8,3.05300414]
[1725948266691,1.92564808,2350.0,2349.8,3.05300414]
[1725948266983,0.89251695,2350.0,2349.8,3.05300414]
[1725948267295,0.89251695,2350.1,2349.8,3.05300414]
[1725948267795,0.89251695,2350.1,2349.8,2.05314958]
[1725948267978,0.89251695,2349.9,2349.8,1.50314958]
[1725948268291,4.29428859,2349.9,2349.8,1.50314958]
[1725948268450,4.74184838,2349.9,2349.8,1.50314958]
[1725948268651,4.7419431,2349.9,2349.8,1.50314958]
[1725948269076,2.3689431,2349.9,2349.8,1.50314958]
[1725948269606,1.34007674,2349.9,2349.8,1.50314958]
[1725948271101,2.36397263,2349.9,2349.8,1.50314958]
[1725948275935,1.91626489,2349.9,2349.8,1.50314958]
[1725948277234,0.892369,2349.9,2349.8,1.50314958]
[1725948280953,0.892369,2350.0,2349.8,1.50314958]
[1725948281755,0.892369,2350.0,2349.8,2.09270454]
[1725948281961,0.892369,2350.1,2349.9,2.3019]
[1725948282129,0.892369,2350.1,2350.0,1.50314958]
[1725948282343,1.90396175,2350.1,2350.0,1.50314958]
[1725948283359,1.01159275,2350.1,2350.0,1.50314958]
[1725948283661,1.90368663,2350.1,2350.0,1.50314958]
[1725948283956,1.01163233,2350.1,2350.0,1.50314958]
[1725948284163,1.90368649,2350.1,2350.0,1.50314958]
[1725948287557,0.89205416,2350.2,2350.0,1.50314958]
[1725948288117,0.89205416,2350.1,2350.0,1.50314958]
[1725948288471,1.90361894,2350.1,2350.0,1.50314958]
[1725948288617,0.89205416,2350.1,2350.0,1.50314958]
[1725948289161,1.90361837,2350.1,2350.0,1.50314958]
[1725948292235,1.01156421,2350.1,2350.0,1.50314958]
[1725948292437,2.35164095,2350.1,2350.0,1.50314958]
[1725948293760,2.36256238,2350.1,2350.0,1.50314958]
[1725948295330,2.80609939,2350.1,2350.0,1.50314958]
[1725948295836,2.80609939,2350.1,2349.8,2.17780902]
[1725948296047,0.89299519,2349.9,2349.8,2.17780902]
[1725948296261,1.91548083,2349.9,2349.8,2.64270454]
[1725948296546,1.91548083,2349.9,2349.8,5.64270454]
[1725948297306,2.36197843,2349.9,2349.8,5.64270454]
[1725948298946,2.36327335,2349.9,2349.8,4.13955496]
[1725948299258,2.36327335,2349.9,2349.8,3.55]
[1725948299441,2.36327335,2349.9,2349.8,1.12144073]
[1725948299639,2.36327335,2349.9,2349.8,4.12144073]
[1725948299841,4.62309759,2349.9,2349.4,0.91427054]
[1725948300061,4.62309759,2349.9,2349.5,2.60325088]
[1725948300062,0.89402038,2349.6,2349.5,2.60325088]
[1725948300273,1.91780094,2349.6,2349.5,5.60325088]
[1725948300842,2.36481113,2349.6,2349.5,5.60325088]
[1725948301076,2.36481113,2349.6,2349.5,5.05314958]
[1725948301261,2.36481113,2349.6,2349.5,2.62210538]
[1725948301481,2.36481113,2349.6,2349.5,6.71030885]
[1725948301777,0.89398853,2349.7,2349.5,8.98490885]
[1725948301943,0.89398853,2349.7,2349.6,4.50314958]
[1725948302144,1.03770547,2349.7,2349.6,5.05314958]
[1725948302343,2.37872773,2349.7,2349.6,5.05314958]
[1725948302537,2.37872773,2349.7,2349.6,4.1189558]
[1725948302792,2.37872773,2349.7,2349.6,1.1189558]
[1725948302963,2.37872773,2349.7,2349.6,0.55]
[1725948303485,2.37872773,2349.7,2349.6,1.50314958]
[1725948303641,2.37872773,2349.7,2349.6,2.62220361]
[1725948304179,2.37872773,2349.7,2349.6,5.62220361]
[1725948304964,2.37872773,2349.7,2349.6,5.07220361]
[1725948305198,2.37872773,2349.7,2349.6,2.07220361]
[1725948305492,2.37872773,2349.7,2349.6,2.07220394]
[1725948306594,2.37872773,2349.7,2349.6,1.50314958]
[1725948306887,2.37872773,2349.7,2349.3,1.50314958]
[1725948306888,4.20928144,2349.7,2349.3,1.50314958]
[1725948307089,2.37857944,2349.6,2349.4,1.11916751]
[1725948307263,1.03767042,2349.5,2349.4,0.55]
[1725948307448,1.03767042,2349.5,2349.4,1.11918887]
[1725948307881,1.03767042,2349.5,2349.4,0.55]
[1725948308343,1.93137377,2349.5,2349.4,1.11919125]
[1725948309395,2.37857944,2349.5,2349.3,1.50314958]
[1725948309696,2.2651,2349.3,2349.1,3.02172791]
[1725948309851,0.89369269,2349.3,2349.1,3.02172791]
[1725948310052,0.89369269,2349.3,2349.2,4.50314958]
[1725948310297,1.92457954,2349.3,2349.2,1.50314958]
[1725948310448,2.3779,2349.2,2349.1,3.02172791]
[1725948310883,2.3779,2349.2,2349.1,0.02172791]
[1725948311066,2.3779,2349.2,2349.1,0.57172791]
[1725948311580,0.89369269,2349.3,2349.1,0.57172791]
[1725948311972,3.15889269,2349.2,2349.1,0.02172791]
[1725948312267,5.08404572,2349.2,2349.1,0.02172791]
[1725948312479,6.90378413,2349.2,2349.1,0.02172791]
[1725948312803,4.67048159,2349.2,2349.1,0.02172791]
[1725948312985,5.61871944,2349.2,2349.1,0.02172791]
[1725948313164,7.84994325,2349.2,2349.1,0.02172791]
[1725948313776,7.40363594,2349.2,2349.1,0.02172791]
[1725948315201,5.61678517,2349.2,2349.1,0.02172791]
[1725948315419,5.58120707,2349.2,2349.1,0.02172791]
[1725948315769,7.40171399,2349.2,2349.1,0.02172791]
[1725948316199,5.58077065,2349.2,2349.1,0.02172791]
[1725948316708,5.58006385,2349.2,2349.1,0.02172791]
[1725948316911,7.4005812,2349.2,2349.1,0.02172791]
[1725948317597,7.84418607,2349.2,2349.1,0.02172791]
[1725948318308,7.39743393,2349.2,2349.1,0.02172791]
[1725948318868,8.90058351,2349.2,2349.1,0.02172791]
[1725948319098,7.08213565,2349.2,2348.6,7.36]
[1725948319306,2.2693,2348.9,2348.4,4.50314958]
[1725948319996,3.15986943,2348.9,2348.4,4.50314958]
[1725948320199,2.2693,2348.9,2348.4,4.50314958]
[1725948321477,2.2693,2348.9,2348.6,1.50314958]
[1725948327304,2.3609,2349.1,2348.6,1.50314958]
[1725948328190,2.3609,2349.1,2348.6,3.78094958]
[1725948332326,1.51935368,2349.3,2348.6,3.78094958]
[1725948332327,0.89056943,2349.3,2348.8,1.50314958]
[1725948332629,1.78113926,2349.6,2349.2,1.50314958]
[1725948332630,0.89056943,2349.5,2349.2,1.50314958]
[1725948332793,3.26846943,2349.6,2349.2,1.50314958]
[1725948333134,3.26846943,2349.6,2349.0,1.50314958]
[1725948333327,3.26846943,2349.6,2349.2,1.50314958]
[1725948333328,0.89056943,2349.6,2349.2,1.50314958]
[1725948333484,0.89056943,2349.8,2349.2,1.50314958]
[1725948333684,1.52864571,2349.8,2349.2,1.50314958]
[1725948335299,2.3423,2349.6,2349.2,1.50314958]
[1725948338302,3.23286943,2349.6,2348.9,3.86134958]
[1725948338501,3.23286943,2349.6,2349.0,3.0]
[1725948341228,0.89056943,2349.5,2349.0,3.0]
[1725948342157,0.89056943,2349.5,2349.0,3.69464856]
[1725948343122,0.89056943,2349.5,2349.0,3.0]
[1725948343919,1.92993897,2349.4,2349.0,3.0]
[1725948344121,0.89056943,2349.4,2349.0,3.0]
[1725948345444,2.2621,2349.3,2349.0,3.0]
[1725948345651,2.2621,2349.3,2348.9,1.50314958]
[1725948346235,2.2621,2349.3,2348.9,1.58828528]
[1725948347874,3.15266943,2349.3,2348.9,1.58828528]
[1725948348234,2.2621,2349.3,2348.9,1.58828528]
[1725948348578,3.15266943,2349.3,2348.9,1.58828528]
[1725948348935,2.2621,2349.3,2348.9,1.58828528]
[1725948349171,2.2621,2349.3,2348.9,2.49032381]
[1725948349350,0.89056943,2349.3,2348.9,2.49032381]
[1725948349556,0.89056943,2349.4,2349.1,1.50314958]
[1725948349875,1.93095133,2349.4,2349.1,1.50314958]
[1725948350259,0.89056943,2349.3,2349.1,1.50314958]
[1725948350662,1.93117557,2349.3,2349.1,1.50314958]
[1725948350850,0.89056943,2349.3,2349.1,1.50314958]
[1725948352243,1.93117118,2349.3,2349.1,1.50314958]
[1725948353150,1.93185342,2349.2,2349.1,1.50314958]
[1725948353351,0.89056943,2349.2,2349.1,1.50314958]
[1725948353683,0.89056943,2349.3,2349.1,1.50314958]
[1725948353903,1.93184184,2349.3,2349.1,1.50314958]
[1725948354268,0.89056943,2349.2,2349.1,1.50314958]
[1725948354604,1.93184184,2349.2,2349.1,1.50314958]
[1725948354806,0.89056943,2349.2,2349.1,1.50314958]
[1725948355172,1.93184184,2349.2,2349.1,1.50314958]
[1725948355579,1.93220346,2349.2,2349.1,1.50314958]
[1725948355774,0.89056943,2349.2,2349.1,1.50314958]
[1725948356208,1.93220346,2349.2,2349.1,1.50314958]
[1725948357105,1.93220346,2349.2,2349.0,2.3255]
[1725948357266,1.93220346,2349.2,2349.0,5.3255]
[1725948360097,0.89056943,2349.3,2349.1,1.50314958]
[1725948360406,0.89056943,2349.4,2349.2,2.4115]
[1725948360575,0.89056943,2349.6,2349.4,3.91464958]
[1725948360901,1.93209543,2349.6,2349.5,2.05314958]
[1725948361057,0.89056943,2349.7,2349.5,2.05314958]
[1725948361373,0.89056943,2349.6,2349.5,2.05314958]
[1725948361788,0.89056943,2349.6,2349.5,0.55]
[1725948362010,0.89056943,2349.6,2349.2,3.56228616]
[1725948362207,0.89056943,2349.6,2349.1,2.0]
[1725948362208,1.93189785,2349.5,2349.3,3.55]
[1725948362500,0.89056943,2349.5,2349.3,3.0]
[1725948362700,1.93187131,2349.5,2349.2,3.0]
[1725948362860,1.93187131,2349.5,2349.1,5.0]
[1725948363061,1.93187131,2349.5,2349.1,5.08512788]
[1725948363286,0.89056943,2349.5,2349.1,5.0]
[1725948363465,1.93181969,2349.5,2349.1,5.08512783]
[1725948364408,0.89056943,2349.4,2349.1,5.08512783]
[1725948364582,1.93181969,2349.4,2349.1,5.0]
[1725948364905,1.93181969,2349.4,2348.5,8.45656045]
[1725948364906,1.92916766,2349.3,2348.8,2.0]
[1725948365131,1.92916766,2349.3,2348.9,0.55]
[1725948365427,1.92916766,2349.2,2348.9,0.55]
[1725948365564,0.89056943,2349.3,2348.9,0.55]
[1725948365763,1.92931151,2349.3,2348.9,0.55]
[1725948365968,0.89056943,2349.3,2348.9,0.55]
[1725948366190,1.92929721,2349.2,2348.9,0.55]
[1725948366392,0.89056943,2349.2,2348.9,0.55]
[1725948366920,1.92940917,2349.2,2348.9,3.55]
[1725948367664,0.89056943,2349.3,2349.0,1.50314958]
[1725948367889,1.92949011,2349.2,2349.0,1.50314958]
[1725948369387,0.89056943,2349.1,2349.0,1.50314958]
[1725948369575,0.89056943,2349.2,2349.0,2.05314958]
[1725948369771,0.89056943,2349.2,2349.0,4.50314958]
[1725948370019,1.9297572,2349.1,2349.0,4.50314958]
[1725948370186,0.89056943,2349.1,2349.0,2.05314958]
[1725948370514,1.92990783,2349.1,2349.0,5.05314958]
[1725948370715,1.92990783,2349.1,2349.0,2.05314958]
[1725948372406,1.92990783,2349.1,2348.9,3.0]
[1725948372621,1.93025909,2349.0,2348.9,3.0]
[1725948372834,1.93025909,2349.0,2348.8,4.50314958]
[1725948372988,2.37559536,2348.9,2348.6,0.54833876]
[1725948373187,0.89330184,2348.7,2348.4,3.86814958]
[1725948373525,1.93322289,2348.6,2348.2,5.86814958]
[1725948373837,1.9332831,2348.5,2348.2,9.11926059]
[1725948374003,0.89330184,2348.5,2348.2,7.11926059]
[1725948374323,1.93304895,2348.5,2348.2,6.57061293]
[1725948374530,1.93311881,2348.5,2348.2,6.57061293]
[1725948374913,0.89330184,2348.5,2348.1,0.54864766]
[1725948375112,0.89330184,2348.5,2348.0,4.37629724]
[1725948375329,1.94581155,2348.4,2348.0,3.82764958]
[1725948375490,0.89330184,2348.4,2348.0,3.82764958]
[1725948375826,0.89330184,2348.4,2348.0,7.1742793]
[1725948376198,0.89330184,2348.4,2348.1,0.55]
[1725948376400,0.89330184,2348.5,2348.1,0.55]
[1725948376643,0.89330184,2348.5,2348.1,3.55]
[1725948376790,4.32342485,2348.4,2348.1,3.0]
[1725948376992,4.32342485,2348.4,2347.9,5.04069644]
[1725948376993,1.9455994,2348.3,2347.9,5.04069644]
[1725948377235,1.9455994,2348.3,2347.9,4.50314958]
[1725948377236,0.89330184,2348.3,2347.9,4.50314958]
[1725948377393,3.27120184,2348.4,2347.9,4.50314958]
[1725948377937,3.27120184,2348.4,2348.1,1.50314958]
[1725948378227,0.89330184,2348.4,2348.1,1.50314958]
[1725948378401,0.89330184,2348.5,2348.1,1.50314958]
[1725948383096,3.27120184,2348.6,2348.1,1.50314958]
[1725948383296,3.91002136,2348.6,2348.1,1.50314958]
[1725948385450,3.27120184,2348.6,2348.1,1.50314958]
[1725948386708,0.89330184,2348.6,2348.1,3.83254958]
[1725948386912,0.84330184,2348.7,2348.3,1.37373358]
[1725948387114,0.84330184,2348.7,2348.2,3.0]
[1725948387115,1.89328912,2348.7,2348.2,4.50314958]
[1725948387361,0.84330184,2348.7,2348.2,4.50314958]
[1725948387666,2.38560722,2348.7,2348.1,3.83254958]
[1725948387957,2.38560722,2348.7,2348.2,0.55]
[1725948388119,3.04007187,2348.7,2348.2,0.55]
[1725948388314,1.04975307,2348.6,2348.1,2.3294]
[1725948388519,1.9903188,2348.7,2348.1,2.3294]
[1725948388729,1.04967169,2348.6,2348.1,5.3294]
[1725948389063,1.9903188,2348.7,2348.1,5.3294]
[1725948389356,1.66450662,2348.6,2348.1,5.3294]
[1725948389515,0.61493581,2348.6,2348.1,5.3294]
[1725948389913,0.61493581,2348.6,2347.7,2.0]
[1725948390114,3.3185816,2348.5,2347.9,1.50314958]
[1725948390338,0.52693716,2348.5,2347.9,4.50314958]
[1725948394153,2.3779,2348.4,2347.9,4.50314958]
[1725948396509,2.3779,2348.4,2347.9,1.50314958]
[1725948396871,2.3779,2348.4,2347.8,0.55]
[1725948397210,2.3779,2348.4,2347.5,7.38172791]
[1725948397211,2.2585,2348.2,2347.5,7.38172791]
[1725948397386,0.41979021,2348.1,2347.6,0.55]
[1725948398177,2.35890882,2348.1,2347.6,0.55]
[1725948398466,1.31008775,2348.1,2347.6,0.55]
[1725948398690,1.31008775,2348.1,2347.5,7.38172791]
[1725948398928,2.3779,2348.0,2347.5,7.38172791]
[1725948399073,3.03059915,2348.0,2347.5,7.38172791]
[1725948401775,3.03059915,2348.0,2347.5,0.02172791]
[1725948402518,3.92089669,2348.0,2347.5,0.02172791]
[1725948402919,3.03059915,2348.0,2347.5,0.02172791]
[1725948404442,3.92089669,2348.0,2347.5,0.02172791]
[1725948404581,0.39208967,2347.9,2347.5,0.02172791]
[1725948406692,2.3779,2347.8,2347.5,0.02172791]
[1725948409304,2.3779,2347.8,2347.4,1.50314958]
[1725948416229,3.26819754,2347.8,2347.2,3.95254958]
[1725948418563,1.9302713,2347.7,2347.2,1.50314958]
[1725948418727,0.89029754,2347.7,2347.2,4.50314958]
[1725948418928,1.93022533,2347.7,2347.2,4.50314958]
[1725948419255,1.93022533,2347.7,2347.2,6.13646454]
[1725948419426,0.89029754,2347.7,2347.2,6.13646454]
[1725948420068,1.93042577,2347.7,2347.2,6.13646454]
[1725948421442,3.20059754,2347.6,2347.0,1.50314958]
[1725948421785,2.3103,2347.4,2347.0,1.50314958]
[1725948422280,3.20059754,2347.4,2347.0,1.50314958]
[1725948422458,2.3103,2347.4,2347.0,1.50314958]
[1725948422786,0.89029754,2347.6,2347.2,3.95804958]
[1725948422997,0.89029754,2347.7,2347.4,1.50314958]
[1725948423193,1.93041343,2347.7,2347.4,1.50314958]
[1725948423486,0.89029754,2347.6,2347.4,1.50314958]
[1725948423843,0.89029754,2347.7,2347.4,1.50314958]
[1725948424046,0.89029754,2347.6,2347.4,1.50314958]
[1725948424284,2.64879778,2347.6,2347.4,1.50314958]
[1725948424581,0.89029754,2347.6,2347.2,2.4549]
[1725948424788,0.89029754,2347.6,2347.2,3.95804958]
[1725948425096,5.02675397,2347.5,2346.8,7.36]
[1725948425245,0.89029754,2347.3,2346.8,8.86314958]
[1725948425442,2.3779,2347.2,2346.8,8.86314958]
[1725948425750,2.3779,2347.2,2346.8,1.50314958]
[1725948426069,3.26819754,2347.2,2346.8,1.50314958]
[1725948426275,2.3779,2347.2,2346.8,1.50314958]
[1725948426591,0.70315884,2347.1,2346.6,1.50314958]
[1725948426805,2.268,2347.0,2346.4,10.86314958]
[1725948426946,3.15829754,2347.0,2346.4,10.86314958]
[1725948427144,0.70311479,2346.9,2346.4,12.19702454]
[1725948427460,3.15829754,2347.0,2346.4,12.19702454]
[1725948427898,3.15829754,2347.0,2346.1,4.4971]
[1725948427899,2.3344,2346.8,2346.1,4.4971]